bitfinex-derivatives/quotes_BTCF0:USTF0_20250406
["timestamp","ask_amount","ask_price","bid_price","bid_amount"]
[1743974659504,0.37516,79520.0,79514.0,0.00064]
[1743974659998,0.37516,79520.0,79509.0,0.1822]
[1743974659999,0.37516,79520.0,79509.0,0.12186679]
[1743974660196,0.37516,79520.0,79509.0,0.04331393]
[1743974660404,0.37516,79520.0,79508.0,1.80732]
[1743974660606,0.37516,79520.0,79508.0,1.81664728]
[1743974661510,0.3608,79514.0,79508.0,1.81664728]
[1743974661715,0.3608,79510.0,79508.0,1.81664728]
[1743974661907,0.3608,79510.0,79500.0,0.1]
[1743974661908,0.3718,79509.0,79500.0,0.1]
[1743974662102,0.3608,79501.0,79500.0,0.14245631]
[1743974662503,0.36176001,79501.0,79500.0,0.14245631]
[1743974662909,0.36176001,79501.0,79500.0,0.07959644]
[1743974664307,0.36276001,79501.0,79500.0,0.07959644]
[1743974664513,0.36276001,79501.0,79483.0,0.1879]
[1743974664713,0.3859,79500.0,79487.0,0.3608]
[1743974665011,0.3859,79500.0,79488.0,0.3081]
[1743974665405,0.3859,79500.0,79490.0,0.15207666]
[1743974665605,0.3859,79500.0,79488.0,0.18]
[1743974666106,0.3859,79500.0,79488.0,0.11714013]
[1743974666310,0.3859,79500.0,79488.0,0.24524013]
[1743974666510,0.38686001,79500.0,79488.0,0.28827632]
[1743974667210,0.3608,79496.0,79488.0,0.16017632]
[1743974667413,0.3859,79495.0,79488.0,0.04303619]
[1743974667608,0.3859,79495.0,79482.0,2.00574]
[1743974669122,0.08805,79494.0,79482.0,2.12708013]
[1743974669508,0.1971,79493.0,79482.0,2.12708013]
[1743974669710,0.3947,79493.0,79482.0,2.12708013]
[1743974670118,0.3947,79493.0,79482.0,2.17141611]
[1743974670315,0.39566001,79493.0,79483.0,0.1282]
[1743974670516,0.39566001,79493.0,79483.0,0.12884]
[1743974670818,0.39666001,79493.0,79483.0,0.12884]
[1743974671022,0.39666001,79493.0,79483.0,0.13831924]
[1743974671210,0.39666001,79493.0,79483.0,0.01011924]
[1743974671805,0.39766001,79493.0,79483.0,0.01011924]
[1743974672011,0.39766001,79493.0,79482.0,2.11867548]
[1743974672222,0.39766001,79493.0,79482.0,2.11931548]
[1743974674325,0.39766001,79493.0,79482.0,2.03701598]
[1743974675133,0.39766001,79493.0,79482.0,1.98361957]
[1743974675527,0.3608,79487.0,79482.0,1.98361957]
[1743974675732,0.3728,79486.0,79482.0,1.98361957]
[1743974676033,0.37392001,79486.0,79482.0,1.98361957]
[1743974676533,0.3728,79486.0,79482.0,1.98361957]
[1743974676732,0.37392001,79486.0,79482.0,1.98361957]
[1743974676935,0.37492001,79486.0,79482.0,1.98361957]
[1743974678127,0.37492001,79486.0,79482.0,1.9207597]
[1743974678328,0.37592001,79486.0,79482.0,0.05443944]
[1743974679236,0.03145,79485.0,79482.0,0.05443944]
[1743974679435,0.03257001,79485.0,79482.0,0.05443944]
[1743974679740,0.3752,79484.0,79482.0,0.05443944]
[1743974680036,0.37632001,79484.0,79482.0,0.05443944]
[1743974681140,0.3608,79483.0,79471.0,0.11903957]
[1743974681531,0.3846,79482.0,79472.0,0.1883]
[1743974682033,0.3846,79482.0,79472.0,0.19761924]
[1743974682233,0.3846,79482.0,79473.0,0.3608]
[1743974682441,0.3608,79497.0,79481.0,0.3608]
[1743974682628,0.3608,79497.0,79484.0,0.15207666]
[1743974683233,0.3608,79504.0,79488.0,0.3608]
[1743974683437,0.1894,79503.0,79496.0,0.3608]
[1743974683639,0.00018862,79504.0,79499.0,0.3608]
[1743974683843,0.3608,79518.0,79500.0,0.1966]
[1743974684137,0.384,79529.0,79509.0,0.3608]
[1743974684342,0.384,79529.0,79510.0,0.3156]
[1743974684537,0.384,79529.0,79519.0,0.3608]
[1743974684736,0.384,79529.0,79520.0,0.3156]
[1743974685937,0.1924,79529.0,79520.0,0.3156]
[1743974686134,0.003,79529.0,79520.0,0.37019417]
[1743974686334,0.1939,79528.0,79520.0,0.37019417]
[1743974686939,0.1939,79528.0,79526.0,0.3608]
[1743974687241,0.1939,79528.0,79527.0,0.24034013]
[1743974688032,0.00018862,79532.0,79527.0,0.24034013]
[1743974688229,0.1939,79531.0,79527.0,0.24034013]
[1743974688532,0.00018862,79532.0,79527.0,0.24998044]
[1743974688844,0.16888563,79541.0,79527.0,0.24998044]
[1743974689043,0.16888563,79541.0,79536.0,0.3608]
[1743974689244,0.16888563,79541.0,79538.0,0.3608]
[1743974689544,0.16888563,79541.0,79539.0,0.1947]
[1743974690336,0.16888563,79541.0,79539.0,0.13184013]
[1743974690636,0.15108862,79551.0,79539.0,0.13184013]
[1743974690836,0.14671566,79551.0,79539.0,0.13184013]
[1743974691038,0.14559565,79551.0,79546.0,0.3608]
[1743974691239,0.14559565,79551.0,79547.0,0.1947]
[1743974692046,0.00018862,79557.0,79547.0,0.1947]
[1743974692445,0.00081138,79551.0,79547.0,0.1947]
[1743974692746,0.1977,79579.0,79556.0,0.3608]
[1743974692941,0.1977,79579.0,79561.0,0.15207666]
[1743974693146,0.1977,79579.0,79560.0,0.15207666]
[1743974693147,0.22638941,79571.0,79564.0,0.3608]
[1743974693349,0.22638941,79571.0,79564.0,0.29794013]
[1743974693548,0.00112001,79571.0,79564.0,0.29794013]
[1743974693738,0.00018862,79575.0,79564.0,0.29794013]
[1743974694135,0.00018862,79575.0,79571.0,0.3608]
[1743974695049,0.00018862,79575.0,79565.0,0.3608]
[1743974695245,0.38348862,79575.0,79565.0,0.3608]
[1743974695550,0.05026,79574.0,79565.0,0.3608]
[1743974696035,0.3833,79573.0,79565.0,0.3608]
[1743974696438,0.3833,79573.0,79565.0,0.29794013]
[1743974696951,0.3833,79573.0,79565.0,0.30733485]
[1743974697249,0.3608,79568.0,79560.0,0.00018862]
[1743974697449,0.3608,79561.0,79560.0,0.00018862]
[1743974697651,0.36192001,79561.0,79560.0,0.00018862]
[1743974697837,0.51192001,79561.0,79540.0,0.3608]
[1743974698040,0.3608,79548.0,79530.0,0.22779112]
[1743974698240,0.36192001,79548.0,79530.0,0.22779112]
[1743974698643,0.36192001,79548.0,79532.0,1.81738104]
[1743974698644,0.1998,79547.0,79532.0,1.81738104]
[1743974699052,0.19998862,79547.0,79532.0,1.81756966]
[1743974699246,0.3608,79541.0,79532.0,1.81756966]
[1743974699452,0.1998,79540.0,79532.0,1.75470979]
[1743974699748,0.20092001,79540.0,79532.0,1.75470979]
[1743974700550,0.20092001,79540.0,79532.0,0.00940966]
[1743974701046,0.3608,79533.0,79532.0,0.00940966]
[1743974701252,0.00112001,79533.0,79520.0,0.05512405]
[1743974701448,0.3608,79529.0,79510.0,0.23731893]
[1743974701642,0.1952,79528.0,79510.0,0.23731893]
[1743974701843,0.1952,79528.0,79511.0,0.3608]
[1743974702450,0.1952,79528.0,79520.0,0.001]
[1743974702451,0.00018862,79527.0,79520.0,0.001]
[1743974702646,0.00138863,79527.0,79520.0,0.001]
[1743974702954,0.3608,79522.0,79520.0,0.001]
[1743974703151,0.1933,79521.0,79520.0,0.001]
[1743974703342,0.38974001,79521.0,79520.0,0.001]
[1743974703740,0.38974001,79521.0,79520.0,0.05847468]
[1743974703945,0.19644001,79521.0,79520.0,0.05847468]
[1743974704549,0.38664001,79521.0,79520.0,0.05847468]
[1743974704745,0.38664001,79521.0,79520.0,0.05747468]
[1743974704951,0.38664001,79521.0,79520.0,0.003]
[1743974705450,0.38664001,79521.0,79510.0,0.00637317]
[1743974705651,0.3608,79511.0,79506.0,1.80756]
[1743974705865,0.3897,79510.0,79484.0,0.11856]
[1743974706352,0.197,79509.0,79481.0,2.16868]
[1743974706549,0.19812001,79509.0,79497.0,0.37033821]
[1743974706750,0.3897,79508.0,79506.0,0.006]
[1743974707052,0.39086,79508.0,79506.0,0.006]
[1743974707447,0.39086,79508.0,79495.0,0.05356991]
[1743974707753,0.3608,79497.0,79495.0,0.06316716]
[1743974707951,0.1984,79496.0,79495.0,0.06316716]
[1743974708157,0.19952001,79496.0,79495.0,0.06316716]
[1743974708556,0.19952001,79496.0,79495.0,0.00030729]
[1743974708856,0.19952001,79496.0,79482.0,0.1826]
[1743974708857,0.39952001,79496.0,79481.0,0.05330767]
[1743974709051,0.3608,79482.0,79467.0,0.28323598]
[1743974709356,0.1984,79481.0,79467.0,0.33735593]
[1743974709766,0.1833,79480.0,79467.0,0.33735593]
[1743974710057,0.1833,79480.0,79467.0,0.05411995]
[1743974710254,0.3608,79470.0,79467.0,0.00928556]
[1743974710447,0.36192001,79470.0,79466.0,0.00018874]
[1743974710646,0.1914,79469.0,79467.0,0.001]
[1743974710956,0.19252001,79469.0,79460.0,0.3608]
[1743974711155,0.19252001,79469.0,79443.0,0.1844]
[1743974711353,0.3608,79454.0,79443.0,0.1844]
[1743974711554,0.3608,79454.0,79443.0,0.12154013]
[1743974711744,0.1914,79453.0,79443.0,0.00952547]
[1743974711950,0.1914,79453.0,79444.0,0.1397]
[1743974712353,0.1914,79453.0,79441.0,0.29754683]
[1743974713156,0.1924,79453.0,79443.0,0.004]
[1743974713365,0.1934,79453.0,79443.0,0.05701524]
[1743974713655,0.1934,79453.0,79443.0,0.004]
[1743974713856,0.1924,79453.0,79442.0,0.29672745]
[1743974714058,0.1818,79452.0,79442.0,0.29672745]
[1743974714444,0.1968,79451.0,79442.0,0.29672745]
[1743974714648,0.1968,79451.0,79442.0,0.23386758]
[1743974714849,0.1818,79450.0,79443.0,0.1842]
[1743974715355,0.1968,79449.0,79443.0,0.1862]
[1743974715758,0.19792001,79449.0,79448.0,0.3608]
[1743974716155,0.19792001,79449.0,79448.0,0.5108]
[1743974716460,0.3608,79468.0,79448.0,0.5108]
[1743974716662,0.3701,79467.0,79458.0,0.22779112]
[1743974716855,0.3701,79467.0,79459.0,0.1956]
[1743974717055,0.3701,79467.0,79456.0,0.3608]
[1743974717458,0.3701,79467.0,79448.0,0.3628]
[1743974717753,0.3701,79467.0,79448.0,0.30012887]
[1743974718161,0.3701,79467.0,79450.0,0.22779112]
[1743974718363,0.3608,79457.0,79448.0,0.29812887]
[1743974718562,0.3701,79456.0,79448.0,0.29812887]
[1743974719257,0.3701,79456.0,79450.0,0.004]
[1743974719458,0.002,79467.0,79450.0,0.004]
[1743974719659,0.3667,79478.0,79466.0,0.3608]
[1743974719860,0.3667,79478.0,79473.0,0.3608]
[1743974720061,50.17329049,79727.0,79473.0,0.3608]
[1743974720062,0.3608,79502.0,79474.0,0.11836]
[1743974720261,0.36166153,79493.0,79490.0,0.22779112]
[1743974720461,0.36230153,79493.0,79491.0,0.3407]
[1743974720660,0.18240153,79493.0,79491.0,0.27784013]
[1743974720967,0.1799,79492.0,79491.0,0.27860013]
[1743974721164,0.18058,79492.0,79491.0,0.27860013]
[1743974721364,0.00068,79492.0,79491.0,0.27860013]
[1743974721569,0.00018874,79500.0,79491.0,0.63940013]
[1743974721762,0.11515428,79501.0,79499.0,0.3608]
[1743974721969,0.00044,79501.0,79500.0,0.3407]
[1743974722155,0.3608,79518.0,79500.0,0.39588212]
[1743974722355,0.3608,79522.0,79510.0,0.3608]
[1743974722662,0.3608,79522.0,79511.0,0.1543]
[1743974722859,0.00112001,79522.0,79519.0,0.3608]
[1743974723066,0.3608,79541.0,79520.0,0.1543]
[1743974723266,0.3608,79548.0,79530.0,0.22779112]
[1743974723472,0.3608,79548.0,79531.0,0.1543]
[1743974723657,0.1886,79547.0,79531.0,0.09324013]
[1743974723858,0.1886,79547.0,79535.0,0.3608]
[1743974724169,0.1886,79547.0,79535.0,0.36268]
[1743974724560,0.00018862,79549.0,79535.0,0.36268]
[1743974724760,0.00018862,79549.0,79539.0,0.22779112]
[1743974724956,0.00018862,79549.0,79545.0,0.3608]
[1743974725165,0.00018862,79549.0,79545.0,0.48096]
[1743974725558,0.3608,79573.0,79548.0,0.3608]
[1743974725766,0.7264,79573.0,79560.0,0.22779112]
[1743974725962,0.7264,79573.0,79560.0,0.22959112]
[1743974726265,0.3656,79573.0,79563.0,0.3608]
[1743974726572,0.3656,79573.0,79563.0,0.36264]
[1743974726770,0.3608,79572.0,79557.0,0.3093702]
[1743974727269,0.3656,79571.0,79557.0,0.31891142]
[1743974729567,0.3676,79571.0,79557.0,0.31891142]
[1743974729763,0.3676,79571.0,79557.0,0.31038639]
[1743974729970,0.3608,79560.0,79557.0,0.06387606]
[1743974730171,0.3825,79559.0,79556.0,0.00018862]
[1743974731071,0.05,79558.0,79520.0,0.58859112]
[1743974731271,0.3608,79540.0,79520.0,0.58991112]
[1743974731471,0.3608,79540.0,79521.0,0.1009]
[1743974731666,0.1962,79539.0,79521.0,0.11166361]
[1743974731869,0.1962,79539.0,79521.0,0.47246361]
[1743974732263,0.3608,79533.0,79522.0,0.00018862]
[1743974732464,0.1962,79532.0,79522.0,0.00142862]
[1743974732864,0.1962,79532.0,79521.0,0.41475236]
[1743974733066,0.1988,79531.0,79521.0,0.46932184]
[1743974733370,0.1988,79531.0,79521.0,0.06405309]
[1743974733566,0.1962,79530.0,79522.0,0.005]
[1743974733768,0.24649,79530.0,79522.0,0.005]
[1743974733970,0.1988,79529.0,79522.0,0.005]
[1743974734469,0.1829,79528.0,79522.0,0.005]
[1743974734964,0.1821,79527.0,79521.0,0.003]
[1743974735168,0.18294,79527.0,79521.0,0.00384]
[1743974735473,0.1829,79526.0,79521.0,0.06524135]
[1743974735770,0.1829,79526.0,79522.0,0.003]
[1743974735970,0.3608,79524.0,79522.0,0.00064]
[1743974736161,0.365,79523.0,79522.0,0.00064]
[1743974736366,0.36572,79523.0,79520.0,0.00955379]
[1743974736561,0.36572,79523.0,79516.0,0.3608]
[1743974736562,0.3608,79521.0,79498.0,0.3608]
[1743974736766,0.3608,79501.0,79498.0,0.00072]
[1743974736967,0.00124001,79501.0,79487.0,1.80788]
[1743974737276,0.3608,79504.0,79487.0,1.80852]
[1743974737669,0.11814862,79503.0,79487.0,1.80852]
[1743974737873,0.3608,79495.0,79487.0,1.87075833]
[1743974738068,0.3608,79488.0,79487.0,1.87075833]
[1743974738272,0.3608,79488.0,79487.0,1.88017616]
[1743974738673,0.3608,79488.0,79487.0,0.07229616]
[1743974738866,0.36204001,79488.0,79487.0,0.00879629]
[1743974739067,0.36204001,79488.0,79469.0,0.3608]
[1743974739367,0.36204001,79488.0,79475.0,0.30819151]
[1743974739568,0.36404001,79488.0,79475.0,0.30819151]
[1743974739773,0.3791,79487.0,79475.0,0.30819151]
[1743974739975,0.38038,79487.0,79475.0,0.30819151]
[1743974740571,0.38038,79487.0,79476.0,0.3608]
[1743974740877,0.38038,79487.0,79476.0,0.5436]
[1743974741674,0.38038,79487.0,79476.0,0.1828]
[1743974741866,0.38038,79487.0,79475.0,0.00927965]
[1743974742072,0.38138,79487.0,79475.0,0.001]
[1743974742374,0.38238,79487.0,79475.0,0.001]
[1743974743074,0.38238,79487.0,79476.0,0.001]
[1743974743272,0.38138,79487.0,79476.0,0.001]
[1743974743577,0.38238,79487.0,79477.0,0.3608]
[1743974743776,0.38238,79487.0,79478.0,0.1946]
[1743974744172,0.38238,79487.0,79479.0,0.1038]
[1743974744974,0.20078,79487.0,79486.0,0.3608]
[1743974745278,0.20178,79487.0,79479.0,0.04094013]
[1743974745475,0.00328,79487.0,79486.0,0.3608]
[1743974745672,0.002,79487.0,79486.0,0.3608]
[1743974746178,0.002,79487.0,79486.0,0.5108]
[1743974746570,0.001,79487.0,79486.0,0.5108]
[1743974746772,0.001,79487.0,79486.0,0.3618]
[1743974746773,0.002,79487.0,79486.0,0.3618]
[1743974746978,0.002,79487.0,79486.0,0.5118]
[1743974747974,0.002,79487.0,79486.0,0.44894013]
[1743974748181,0.002,79487.0,79486.0,0.29894013]
[1743974748983,0.002,79487.0,79486.0,0.41674013]
[1743974749280,0.002,79487.0,79486.0,0.29894013]
[1743974749584,0.002,79487.0,79486.0,0.41674013]
[1743974750684,0.1833,79497.0,79486.0,0.41674013]
[1743974750889,0.1855,79496.0,79487.0,0.22779112]
[1743974751078,0.1855,79496.0,79487.0,0.16493125]
[1743974751272,0.1962,79495.0,79487.0,0.16493125]
[1743974751480,0.19752,79495.0,79487.0,0.16493125]
[1743974751678,0.1855,79494.0,79487.0,0.16493125]
[1743974752183,0.1962,79493.0,79487.0,0.16493125]
[1743974752677,0.1855,79492.0,79487.0,0.16593125]
[1743974752876,0.18678,79492.0,79487.0,0.16593125]
[1743974753078,0.1805,79491.0,79487.0,0.16593125]
[1743974753489,0.1826,79490.0,79487.0,0.16593125]
[1743974753879,0.1805,79489.0,79487.0,0.16593125]
[1743974754179,0.1805,79489.0,79487.0,0.001]
[1743974754387,0.1826,79488.0,79487.0,0.004]
[1743974754884,0.18384001,79488.0,79487.0,0.003]
[1743974755074,0.18384001,79488.0,79487.0,0.001]
[1743974755274,0.18384001,79488.0,79487.0,0.004]
[1743974755488,0.18384001,79488.0,79487.0,0.003]
[1743974755785,0.18384001,79488.0,79477.0,0.3608]
[1743974755786,0.33484001,79488.0,79477.0,0.3608]
[1743974755978,0.1846,79488.0,79487.0,0.003]
[1743974756176,0.18584001,79488.0,79477.0,0.3608]
[1743974756378,0.1846,79488.0,79475.0,0.07267872]
[1743974756573,0.1846,79488.0,79458.0,0.29754683]
[1743974756574,0.3608,79476.0,79458.0,0.29754683]
[1743974756781,0.3608,79459.0,79458.0,0.30683443]
[1743974756982,0.36204001,79459.0,79458.0,0.30683443]
[1743974757181,0.54534001,79459.0,79458.0,0.24397456]
[1743974758175,0.69534001,79459.0,79450.0,0.37094815]
[1743974758482,0.3608,79451.0,79450.0,0.37094815]
[1743974758677,0.36204001,79451.0,79450.0,0.37094815]
[1743974758985,0.51204001,79451.0,79430.0,0.22779112]
[1743974759184,0.3608,79443.0,79430.0,0.22779112]
[1743974759577,0.36204001,79443.0,79430.0,0.22779112]
[1743974759779,0.3608,79431.0,79430.0,0.23722497]
[1743974759981,0.3608,79431.0,79430.0,0.00943385]
[1743974760182,0.3608,79431.0,79428.0,0.31697398]
[1743974760385,0.1814,79430.0,79428.0,0.31697398]
[1743974760586,0.18264001,79430.0,79428.0,0.31697398]
[1743974761588,0.18364001,79430.0,79428.0,0.31697398]
[1743974761795,0.18364001,79430.0,79420.0,0.44816723]
[1743974762091,0.3608,79423.0,79420.0,0.4578223]
[1743974762288,0.18464001,79430.0,79420.0,0.5203807]
[1743974762494,0.3608,79440.0,79423.0,0.3608]
[1743974762791,0.3608,79440.0,79430.0,0.22779112]
[1743974762991,0.3608,79440.0,79431.0,0.1992]
[1743974763179,0.3608,79440.0,79431.0,0.13634013]
[1743974763385,0.1817,79439.0,79432.0,0.1939]
[1743974764996,0.1827,79439.0,79432.0,0.1939]
[1743974765198,0.1837,79439.0,79432.0,0.1939]
[1743974765400,0.3608,79433.0,79423.0,0.3608]
[1743974765695,0.1909,79432.0,79424.0,0.1834]
[1743974766207,0.1909,79432.0,79424.0,0.12054013]
[1743974766701,0.3608,79426.0,79420.0,0.5203807]
[1743974766903,0.1909,79425.0,79420.0,0.5203807]
[1743974768200,0.1909,79425.0,79420.0,0.29258958]
[1743974768997,0.19322,79425.0,79420.0,0.29258958]
[1743974769294,0.19422,79425.0,79420.0,0.22972971]
[1743974769807,0.19422,79425.0,79420.0,0.07221347]
[1743974769998,0.19422,79425.0,79410.0,0.22779112]
[1743974770200,0.3608,79418.0,79417.0,1.81825776]
[1743974770501,0.3608,79418.0,79392.0,1.80964]
[1743974770708,0.3608,79402.0,79400.0,0.1095894]
[1743974770904,0.3801,79401.0,79400.0,0.1095894]
[1743974771102,0.56194001,79401.0,79400.0,0.1095894]
[1743974771304,0.56194001,79401.0,79392.0,1.80964]
[1743974771506,0.3608,79393.0,79392.0,1.87394119]
[1743974771806,0.3608,79393.0,79392.0,0.07367886]
[1743974772007,0.36204001,79393.0,79389.0,0.44947844]
[1743974772200,0.1908,79392.0,79389.0,0.38661857]
[1743974773206,0.3608,79393.0,79389.0,0.46015786]
[1743974773504,0.001,79401.0,79390.0,0.3899]
[1743974773803,0.27210312,79417.0,79399.0,0.3608]
[1743974774005,0.3608,79403.0,79389.0,0.46015786]
[1743974774208,0.001,79393.0,79390.0,0.60299112]
[1743974774401,0.002,79393.0,79390.0,0.60299112]
[1743974774602,0.001,79393.0,79390.0,0.60299112]
[1743974775108,0.001,79393.0,79390.0,0.60371112]
[1743974775309,0.002,79393.0,79390.0,0.54085125]
[1743974776205,0.002,79393.0,79390.0,0.31306013]
[1743974776708,0.001,79393.0,79390.0,0.31306013]
[1743974777811,0.002,79393.0,79390.0,0.31306013]
[1743974778407,0.002,79393.0,79390.0,0.25020026]
[1743974778810,0.00097687,79393.0,79390.0,0.24920026]
[1743974779712,0.1908,79398.0,79390.0,0.24920026]
[1743974779913,0.1918,79398.0,79397.0,0.3608]
[1743974780910,0.1928,79398.0,79397.0,0.3608]
[1743974781115,0.21668,79402.0,79397.0,0.3608]
[1743974781412,0.21732,79402.0,79398.0,0.12614013]
[1743974781616,0.21732,79402.0,79398.0,0.12682013]
[1743974782417,0.21732,79402.0,79399.0,0.1913]
[1743974782611,0.1911,79401.0,79399.0,0.00068]
[1743974782812,0.19182,79401.0,79399.0,0.00068]
[1743974783010,0.1881,79400.0,79399.0,0.00068]
[1743974783414,0.18874,79400.0,79399.0,0.00068]
[1743974783715,0.18874,79400.0,79398.0,0.003]
[1743974783917,0.1857,79399.0,79398.0,0.003]
[1743974784117,0.18634,79399.0,79398.0,0.003]
[1743974784416,0.18634,79399.0,79389.0,0.01367942]
[1743974784605,0.3608,79393.0,79389.0,0.00076]
[1743974784805,0.3738,79392.0,79389.0,0.2329183]
[1743974785010,0.37444,79392.0,79389.0,0.2960783]
[1743974786407,0.73524,79392.0,79389.0,0.2960783]
[1743974787017,0.73724,79392.0,79389.0,0.2960783]
[1743974787421,0.73724,79392.0,79389.0,0.23321843]
[1743974787921,0.73621707,79392.0,79389.0,0.23321843]
[1743974788220,0.73621707,79392.0,79389.0,0.23221843]
[1743974788406,0.73621707,79392.0,79389.0,0.07338316]
[1743974788606,0.73621707,79392.0,79384.0,0.00018887]
[1743974788809,0.3608,79385.0,79384.0,0.00018887]
[1743974790114,0.36144,79385.0,79384.0,0.00018887]
[1743974790610,0.36144,79385.0,79372.0,0.298129]
[1743974790919,0.1823,79384.0,79372.0,0.298809]
[1743974791122,0.36572,79384.0,79372.0,0.30828488]
[1743974791321,0.36572,79384.0,79372.0,0.68310826]
[1743974792315,0.3608,79373.0,79372.0,0.44891493]
[1743974792519,0.36148,79373.0,79372.0,0.44891493]
[1743974793522,0.36248,79373.0,79372.0,0.38605506]
[1743974793820,0.36248,79373.0,79372.0,0.38669506]
[1743974794020,0.36248,79373.0,79372.0,0.39595809]
[1743974794224,0.51348,79373.0,79372.0,0.32275939]
[1743974794421,0.51348,79373.0,79372.0,0.32211939]
[1743974794811,0.89818,79373.0,79370.0,0.00018887]
[1743974795008,0.74818,79373.0,79370.0,0.00018887]
[1743974795211,0.3608,79371.0,79356.0,0.51904143]
[1743974795423,0.7216,79357.0,79356.0,0.51968143]
[1743974795614,0.72236,79357.0,79356.0,0.00064]
[1743974796214,0.72236,79357.0,79352.0,0.44969434]
[1743974796417,0.57173822,79356.0,79352.0,0.45065434]
[1743974796616,0.11716,79355.0,79352.0,0.39739995]
[1743974796817,0.11812001,79355.0,79348.0,0.06309944]
[1743974797013,0.17159235,79349.0,79339.0,0.51904143]
[1743974797213,0.3608,79340.0,79339.0,0.52028143]
[1743974797528,0.47916001,79340.0,79339.0,0.52028143]
[1743974798125,0.47916001,79340.0,79332.0,0.59321544]
[1743974798314,0.3608,79333.0,79332.0,0.59321544]
[1743974798513,0.41244001,79333.0,79319.0,0.80866334]
[1743974798723,0.3608,79320.0,79319.0,0.74515379]
[1743974798913,0.3608,79320.0,79319.0,0.20545707]
[1743974798914,0.47952001,79320.0,79319.0,0.20545707]
[1743974799115,0.67952001,79320.0,79319.0,0.20545707]
[1743974799620,1.04032001,79320.0,79319.0,0.1425972]
[1743974799826,1.04032001,79320.0,79300.0,0.1]
[1743974800123,0.3608,79313.0,79300.0,0.1]
[1743974800333,0.05164001,79313.0,79312.0,0.52486504]
[1743974800619,0.47792,79322.0,79312.0,0.52486504]
[1743974800825,0.47952001,79322.0,79313.0,0.1835]
[1743974801222,0.1949,79321.0,79313.0,0.1835]
[1743974801427,0.31358001,79321.0,79313.0,0.1835]
[1743974801925,0.00160001,79321.0,79316.0,0.3608]
[1743974802127,0.00018911,79327.0,79317.0,0.3787]
[1743974802321,0.00018911,79327.0,79323.0,0.3608]
[1743974802625,0.00018911,79327.0,79324.0,0.31584013]
[1743974802825,0.00018911,79327.0,79324.0,0.49954013]
[1743974803324,0.3608,79344.0,79324.0,0.49954013]
[1743974803530,0.1859,79341.0,79328.0,0.3608]
[1743974803720,0.00164001,79341.0,79335.0,0.3608]
[1743974803915,0.00164001,79341.0,79336.0,0.1926]
[1743974804127,0.3681,79357.0,79340.0,0.3608]
[1743974804318,0.3681,79357.0,79349.0,0.3608]
[1743974804319,0.36970001,79357.0,79349.0,0.3608]
[1743974804518,0.00018911,79356.0,79350.0,0.1926]
[1743974804816,0.26181133,79352.0,79350.0,0.1926]
[1743974805016,0.26341134,79352.0,79350.0,0.25469626]
[1743974805222,0.00018911,79356.0,79351.0,0.3608]
[1743974805424,0.27,79356.0,79351.0,0.5478]
[1743974805723,0.27,79356.0,79352.0,0.13244013]
[1743974806229,0.27,79356.0,79353.0,0.187]
[1743974807224,0.3608,79354.0,79353.0,0.187]
[1743974807428,0.62192001,79354.0,79353.0,0.187]
[1743974807622,0.62192001,79354.0,79351.0,0.01451992]
[1743974807822,0.1843,79353.0,79352.0,0.006]
[1743974808025,0.44554001,79353.0,79352.0,0.006]
[1743974808422,0.63624001,79353.0,79352.0,0.006]
[1743974808626,0.63624001,79353.0,79332.0,0.31372675]
[1743974808926,0.3608,79346.0,79333.0,0.377]
[1743974809126,0.375,79345.0,79333.0,0.377]
[1743974809327,0.635,79345.0,79333.0,0.377]
[1743974809632,0.63620001,79345.0,79333.0,0.377]
[1743974810225,0.63620001,79345.0,79333.0,0.44104657]
[1743974810525,0.05041,79344.0,79333.0,0.44204657]
[1743974810831,0.34041,79344.0,79333.0,0.44204657]
[1743974811035,0.3796,79343.0,79333.0,0.44204657]
[1743974811331,0.6396,79343.0,79333.0,0.44204657]
[1743974811718,0.64072001,79343.0,79333.0,0.3791867]
[1743974812224,0.64072001,79343.0,79333.0,0.38887032]
[1743974812425,0.64072001,79343.0,79333.0,0.38787032]
[1743974812732,0.3608,79338.0,79333.0,0.38787032]
[1743974812928,0.3796,79337.0,79333.0,0.38787032]
[1743974813232,0.28,79337.0,79333.0,0.38787032]
[1743974813534,0.03151,79336.0,79333.0,0.38787032]
[1743974813729,0.31151,79336.0,79333.0,0.38787032]
[1743974814034,0.31048727,79336.0,79333.0,0.38787032]
[1743974814732,0.31048727,79336.0,79333.0,0.09786349]
[1743974816035,0.1893,79335.0,79333.0,0.09786349]
[1743974816234,0.6446,79335.0,79333.0,0.09786349]
[1743974817831,0.6446,79335.0,79333.0,0.03500362]
[1743974818035,0.6446,79335.0,79334.0,0.1825]
[1743974818434,0.64584001,79335.0,79334.0,0.1825]
[1743974820436,0.64584001,79335.0,79333.0,0.00949093]
[1743974820626,0.64584001,79335.0,79331.0,0.00018911]
[1743974820827,0.64584001,79335.0,79317.0,0.18853378]
[1743974821029,0.3608,79326.0,79317.0,0.37013378]
[1743974821231,0.3749,79325.0,79317.0,0.37013378]
[1743974821423,0.6449,79325.0,79317.0,0.37013378]
[1743974822328,0.64602001,79325.0,79317.0,0.00940127]
[1743974822634,0.3608,79318.0,79310.0,0.06360919]
[1743974822836,0.35977746,79311.0,79304.0,1.81216]
[1743974823136,0.3838,79310.0,79304.0,1.81216]
[1743974823438,0.6738,79310.0,79304.0,0.0095603]
[1743974823637,0.11676,79309.0,79300.0,0.1]
[1743974823827,0.3608,79301.0,79300.0,0.03714013]
[1743974824029,0.67192001,79301.0,79289.0,0.0627004]
[1743974824228,0.3608,79290.0,79289.0,0.0627004]
[1743974824429,0.60192001,79290.0,79280.0,0.30039194]
[1743974824632,0.3608,79281.0,79267.0,0.45058791]
[1743974824836,0.7216,79268.0,79267.0,0.45058791]
[1743974825036,1.15832,79268.0,79248.0,0.189]
[1743974825238,0.3608,79254.0,79240.0,0.67146364]
[1743974825432,0.70192001,79254.0,79240.0,0.67146364]
[1743974825931,0.87842001,79254.0,79240.0,0.67146364]
[1743974826138,0.3608,79248.0,79240.0,0.67146364]
[1743974826439,0.6008,79248.0,79240.0,0.67146364]